Cogmind - Beta 17.1 @@@ ROGUE MODE // 2026.09.05 @ 23:24:21 Player: Xcalibur Result: Destroyed by as-78355 with Assembled F-torch Performance ------------- Evolutions (0) 0 Regions Visited (2) 400 Robots Destroyed (3) 15 Value Destroyed (115) 115 Prototype IDs (0) 0 Alien Tech Used (0) 0 Bonus (0) 0 TOTAL SCORE: 530 Bonus ------- None Cogmind --------- Core Integrity 0/250 Matter 300/300 Energy 99/100 System Corruption 1% Temperature Cool (40) Movement Core (50) Location -10/Mines Parts ------- > --- POWER (1) -------- (None) > --- PROPULSION (2) --- (None) > --- UTILITY (2) ------ (None) > --- WEAPON (2) ------- (None) > --- INVENTORY (5) ---- Light Ion Engine Aluminum Leg Small Matter Pod (50) Compact Matter Pod (150) Peak State ------------ > --- POWER ------------ Light Ion Engine > --- PROPULSION ------- Wheel Wheel > --- UTILITY ---------- (None) > --- WEAPON ----------- Medium Laser Assault Rifle > --- INVENTORY -------- Aluminum Leg [Rating: 5] Favorites ----------- Power Ion Engine Engine Ion Engine Propulsion Wheel Treads Light Treads Leg Aluminum Leg Wheel Wheel Utility High-capacity Matter Pod Storage High-capacity Matter Pod Weapon Medium Laser Energy Gun Medium Laser Ballistic Gun Assault Rifle Build | -11 -10 -10 ------- Run | Yrd Mat Min Slots Evolved . | . . . Power . | . . . Propulsion . | . . . Utility . | . . . Weapon . | . . . Parts Attached 11 | 8 . 3 Power 2 | 2 . . Engine 2 | 2 . . Core . | . . . Reactor . | . . . Propulsion 5 | 4 . 1 Treads 1 | . . 1 Leg 2 | 2 . . Wheel 2 | 2 . . Hover . | . . . Flight . | . . . Utility 2 | . . 2 Device . | . . . Storage 2 | . . 2 Processor . | . . . Hackware . | . . . Protection . | . . . Artifact . | . . . Weapon 2 | 2 . . Energy Gun 1 | 1 . . Energy Cannon . | . . . Ballistic Gun 1 | 1 . . Ballistic Cannon . | . . . Launcher . | . . . Special Weapon . | . . . Impact Weapon . | . . . Slashing Weapon . | . . . Piercing Weapon . | . . . Special Melee Weapon . | . . . Unidentified Prototypes . | . . . Parts Lost 4 | . 1 3 Power . | . . . Propulsion 2 | . . 2 Utility . | . . . Weapon 2 | . 1 1 Highest Loss Streak 3 | . 1 3 To Critical Strikes . | . . . Average Backups 2 | . 2 3 Power . | . 1 1 Propulsion . | . 1 1 Utility . | . . 1 Weapon . | . . . Tool/Special . | . . . Unused Backups 2 | . . 2 Power . | . . . Propulsion . | . . . Utility 2 | . . 2 Weapon . | . . . Tool/Special . | . . . Average Slot Usage (%) 57 | . 65 43 Engine 7 | . 12 . Wheel 27 | . 28 26 Energy Gun 14 | . 14 14 Ballistic Gun 6 | . 10 . Peak Build Rating 5 | 5 5 4 Average Rating 3 | 3 4 2 On Entrance 2 | . 5 3 Avg Prop Armor Cover (%) 23 | 23 20 24 Naked Turns 5 | . . 5 Heaviest Build 9 | 9 9 6 Greatest Support 20 | 20 20 3 Greatest Overweight (x) 1 | 1 . 1 Average Overweight (x) . | . . . Largest Inventory Capacity 20 | 5 5 20 Average Capacity 5 | 5 5 5 Most Carried 4 | 2 2 4 Average Carried 2 | . 2 3 Final Capacity 5 | 5 5 5 Final Carried 4 | 2 2 4 Class Distribution -------------------- 100% | Mutant Dominant Class ---------------- Mutant | -10/Materials Mutant | -10/Mines Resources | -11 -10 -10 ----------- Run | Yrd Mat Min Matter Collected 238 | 123 56 59 Remotely . | . . . Salvage Created 136 | 39 97 . Parts 6 | 2 4 . Haulers Intercepted . | . . . Recyclers Shooed . | . . . Parts Field Recycled . | . . . Retrieved Matter . | . . . Parts Self-Destructed . | . . . Prevented . | . . . Parts Restored . | . . . Kills | -11 -10 -10 ------- Run | Yrd Mat Min Combat Hostiles Destroyed 3 | 1 2 . Guns 3 | 1 2 . Classes Destroyed 1 | 1 . . Grunt 3 | 1 2 . Best Kill Streak 2 | 1 2 . Combat Bots Only 2 | 1 2 . Max Kills in Single Turn 1 | 1 1 . Gunslinging . | . . . Exploded . | . . . Melee . | . . . Uniques/NPCs Destroyed . | . . . Combat | -11 -10 -10 -------- Run | Yrd Mat Min Hostile Shots Fired 70 | 3 35 32 Missed 25 | 3 9 13 Hits 45 | . 26 19 Projectile 45 | . 26 19 Damage Taken 568 | . 326 242 Core 252 | . 62 190 Absorbed by Shields . | . . . Core Remaining (%) 100 | 100 . . Volleys Fired 13 | 3 10 . Largest 2 | 2 2 . Hottest 70 | 70 70 . Shots Fired 26 | 6 20 . Gun 26 | 6 20 . Cannon . | . . . Launcher . | . . . Special . | . . . Kinetic 13 | 3 10 . Thermal 13 | 3 10 . Explosive . | . . . Electromagnetic . | . . . Robot Hit Streak 5 | 3 5 . Robot Miss Streak 3 | 2 3 . Penetration Max . | . . . Secondary Targets . | . . . Shots Hit Robots 16 | 3 13 . Core Hits 7 | 2 5 . Critical Kills . | . . . Critical Parts Destroyed . | . . . Critical Strikes 1 | . 1 . Burn 1 | . 1 . Melee Attacks . | . . . Impact . | . . . Slashing . | . . . Piercing . | . . . Sneak Attacks . | . . . Combat Hostiles . | . . . Follow-up Attacks . | . . . Damage Inflicted 236 | 36 193 7 Guns 193 | 36 157 . Cannons . | . . . Explosions . | . . . Melee . | . . . Ramming 43 | . 36 7 Kinetic 105 | 11 94 . Thermal 88 | 25 63 . Explosive . | . . . Electromagnetic . | . . . Impact . | . . . Slashing . | . . . Piercing . | . . . Highest Corruption 1 | . 1 1 Average Corruption 1 | . 1 1 Corruption Purged . | . . . Corruption Blocked . | . . . Overload Shots . | . . . Overflow Damage . | . . . Projectiles . | . . . Explosions . | . . . Melee . | . . . Knockbacks 1 | . 1 . Impact 1 | . 1 . Kinetic . | . . . Secondary . | . . . Self-Inflicted Damage 14 | . 11 3 Shots . | . . . Rammed 25 | . 22 3 Targets Rammed 25 | . 22 3 Kicked . | . . . Crushed . | . . . Highest Temperature 162 | . 162 . Average Temperature 90 | . 90 . Received Heat Transfer 274 | . 174 100 Siege Activations . | . . . Martial Activations . | . . . Shielding Activations . | . . . Robots Disrupted . | . . . Combat Hostiles . | . . . Robots Corrupted . | . . . Combat Hostiles . | . . . Parts Fried . | . . . Impact Corruptions . | . . . Robots Melted . | . . . Combat Hostiles . | . . . Parts Melted 1 | . 1 . Heat Transferred 333 | 74 259 . Parts Sabotaged . | . . . Parts Stolen . | . . . Parts Stripped . | . . . Power Chain Reactions . | . . . Alert | -11 -10 -10 ------- Run | Yrd Mat Min Maximum Alert Level . | . . . Low Security (%) 100 | 100 100 100 Level 1 . | . . . Level 2 . | . . . Level 3 . | . . . Level 4 . | . . . Level 5 . | . . . High Security . | . . . Max Security . | . . . Peak Influence 53 | 20 53 14 Initial 14 | . 6 14 Average 13 | 2 23 3 Influence Increases 118 | 20 98 . Destroy 0b10 Robot/C 60 | 20 40 . Destroy Leader 10 | . 10 . Successful Hack 18 | . 18 . Lose Combat Pursuer 30 | . 30 . Influence Decreases 118 | 10 70 38 Entered New Map 28 | . 4 24 Time Decay 80 | 10 56 14 Lost Part 10 | . 10 . Squads Dispatched 3 | . 3 . Investigation 2 | . 2 . Extermination . | . . . Reinforcement 1 | . 1 . Assault . | . . . Garrison . | . . . Intercept . | . . . Searches Triggered . | . . . Construction Impeded . | . . . Haulers Reinforced . | . . . Active Scanning Responses . | . . . Cargo Convoy Interrupts . | . . . Stealth | -11 -10 -10 --------- Run | Yrd Mat Min Distress Signals 1 | . 1 . Communications Jammed . | . . . Distress Signals . | . . . Times Spotted 30 | 1 9 20 Peak Tracking Total 20 | 1 8 20 Tactical Retreats 1 | . 1 . Traps | -11 -10 -10 ------- Run | Yrd Mat Min Traps Triggered . | . . . Indirectly . | . . . Trap Hack Attempts . | . . . Triggered . | . . . Disarmed . | . . . Reprogrammed . | . . . Reused . | . . . Traps Extracted . | . . . Installed . | . . . Triggered . | . . . Machines | -11 -10 -10 ---------- Run | Yrd Mat Min Machines Disabled . | . . . Max in Single Turn . | . . . Machines Repaired . | . . . Machines Dismantled . | . . . Machines Sabotaged . | . . . Overloaded Fab Kills . | . . . Hacking | -11 -10 -10 --------- Run | Yrd Mat Min Machines Accessed 2 | . 2 . Terminals 2 | . 2 . Fabricators . | . . . Repair Stations . | . . . Recycling Units . | . . . Scanalyzers . | . . . Garrison Access . | . . . Total Hacks 9 | . 9 . Successful 5 | . 5 . Failed 4 | . 4 . Catastrophic 1 | . 1 . Database Lockouts . | . . . Manual 6 | . 6 . Terminals 9 | . 9 . Fabricators . | . . . Repair Stations . | . . . Recycling Units . | . . . Scanalyzers . | . . . Garrison Access . | . . . Terminal Hacks 4 | . 4 . Robot Analysis 2 | . 2 . Surveillance Status 1 | . 1 . Zone Layout 1 | . 1 . Fabricator Hacks . | . . . Repair Station Hacks . | . . . Recycling Unit Hacks . | . . . Scanalyzer . | . . . Garrison Access Hacks . | . . . Unauthorized Hacks 1 | . 1 . Terminals 1 | . 1 . Botnet 1 | . 1 . Fabricators . | . . . Repair Stations . | . . . Recycling Units . | . . . Scanalyzers . | . . . Garrison Access . | . . . Data Cores Recovered . | . . . Used . | . . . Hacking Detections 2 | . 2 . Full Trace Events 2 | . 2 . Feedback Events . | . . . Feedback Blocked . | . . . Robot Schematics Acquired . | . . . Robots Built . | . . . Authchips . | . . . Time . | . . . Total Robot Build Rating . | . . . Part Schematics Acquired . | . . . Parts Built . | . . . Authchips . | . . . Time . | . . . Total Part Build Rating . | . . . Part Studies Acquired . | . . . Parts Repaired . | . . . Time . | . . . Parts Recycled . | . . . Recycled Matter . | . . . Retrieved Matter . | . . . Retrieved Components . | . . . Parts Scanalyzed . | . . . Part Schematics Acquired . | . . . Parts Damaged . | . . . Bothacking | -11 -10 -10 ------------ Run | Yrd Mat Min Used RIF Installer . | . . . Robots Hacked . | . . . Non-combat . | . . . Combat . | . . . Robot Hacks Applied . | . . . Relay Couplers Released . | . . . Fabnet Peak Effective % . | . . . Robots Rewired . | . . . Allies Hacked . | . . . Hacks Repelled . | . . . Allies | -11 -10 -10 -------- Run | Yrd Mat Min Total Allies . | . . . Largest Group . | . . . Highest-Rated Group . | . . . Highest-Rated Ally . | . . . Total Orders . | . . . Ally Attacks . | . . . Total Damage . | . . . Kills . | . . . Allies Corrupted . | . . . Allies Melted . | . . . Intel | -11 -10 -10 ------- Run | Yrd Mat Min Active Infowar (turns) . | . . . Robot Analysis Total 2 | . 2 . Derelict Logs Recovered 1 | . . 1 Drone Launches . | . . . Drone Recoveries . | . . . Exploration | -11 -10 -10 ------------- Run | Yrd Mat Min Turns Passed 307 | 65 152 90 Spaces Moved 350 | 58 138 154 Core 211 | 22 35 154 Treads . | . . . Legs 4 | 4 . . Wheels 135 | 32 103 . Hover . | . . . Flight . | . . . Fastest Speed 50 | 50 50 50 Average Speed 63 | 73 72 51 Slowest Speed 120 | 120 80 100 Overloaded Moves . | . . . Propulsion Burnouts . | . . . Robots Hopped . | . . . Potential Cave-ins . | . . . Cave-ins Triggered . | . . . Exploration Rate (%) 24 | 7 29 36 Regions Visited 2 Branch Regions 1 Pre-discovered Areas 1 | . . 1 Known Exits Taken . | . . . Unknown Exits Taken 2 | 1 1 . Scrap Searched . | . . . Spaces Dug . | . . . Terrain Destroyed . | . . . Melee . | . . . Projectile . | . . . AOE . | . . . Terrain Rammed . | . . . Walls Destroyed . | . . . Machines Disabled . | . . . Actions | -11 -10 -10 --------- Run | Yrd Mat Min Total 405 | 71 170 164 Wait . | . . . Move 348 | 57 137 154 Hop . | . . . Pick Up 3 | 1 . 2 Fast Attach 8 | 6 . 2 Attach 1 | 1 . . Detach 1 | 1 . . Swap 2 | 1 . 1 Drop 4 | 1 1 2 Fire 13 | 3 10 . Melee . | . . . Ram 25 | . 22 3 Kick . | . . . Crush . | . . . Escape Stasis . | . . . Rewire . | . . . Trap . | . . . Miscellaneous . | . . . Route ------- -11/Scrapyard -10/Materials (discovered 2 exits: [Mat] / [*Min]) -10/Mines (discovered 1 exit: [*Mat]) History --------- Turn | Location | Event 2 | -11/Scrapyard | Met Revision 17 44 | -11/Scrapyard | Discovered new exit (range 8) 66 | -11/Scrapyard | Entered Materials 156 | -10/Materials | Discovered new exit (range 17) 208 | -10/Materials | Discovered new exit (range 15) 218 | -10/Materials | Entered Mines 234 | -10/Mines | Learned location of Zion (-7) 248 | -10/Mines | Discovered new exit (range 10) 282 | -10/Mines | Assembled infested the area 305 | -10/Mines | Core integrity fell below 50% 308 | -10/Mines | Destroyed by as-78355 with Assembled F-torch Last Messages --------------- 00260_ Acquired Sml. Matter Pod. 00261_ Dropped Hcp. Matter Pod. 00282_ ALERT: Infestation in the mines, dispatching Demolisher response squad. When attempting to attach a part directly from the ground, if there is no auto-replacement effect you can quickly repeat the command a second time to attempt a manual swap. 00292_ Acquired Lgt. Treads. 00296_ Acquired Hcp. Storage Unit. The Hcp. Storage Unit has expanded your inventory capacity. Items held in inventory do not count towards total mass and therefore cannot slow you down. 00297_ Dropped Hcp. Storage Unit. 00300_ Wheel destroyed. 00301_ Med. Laser destroyed. 00303_ Lgt. Treads destroyed. 00304_ Slammed into as-60549. 00306_ Slammed into as-76685. 00306_ as-03857 shuts down. 00307_ Slammed into as-48938. Map ----- +----------------------------------------------------+ | ????????????????????????????????# ##?# !!!! # | | ????????????????????????????????## ##?## ! ! # | | ?????????????????????????????????## ##??# !!!! # | | ??????????????????????????????????# ##??# ! !! # | | ???????????????????????????######## ##?# # | | ??????????????????????????## #?## #### | | ?????????????????????????## #??#####??? | | ????????????????????????## #### #?????????? | | ???????????????????????## #??## #?????????? | | ???????????????????????# #???## ##?????????? | | ???????????????????????# ##????####??????##??? | | ???????????????????????#% ##????????????## ###? | | ???????????????????????# #??????????## | | ???????????????????????# ##??####### ? | | ???????????????????????## #### ? | | ????????????????????????## ????? | | ?????????????????????????## [ ! #???????????? | | ??????????????????????????## ##???????????? | | ???????????????????????????#### #????????????? | | ???????????????????????####???##= #????????????? | | ??????????????????????## ##???# #????????????? | | ??????????????????????# aa#???## #????????????? | | ?????????????????????## aaa#????## #????????????? | | ?????????????????????# aaa####### #????????????? | | ?????????????????????# a%aaaa a #????????????? | | ?????????????????????## @aaaa aa #????????????? | | ??????????????????????###############????????????? | | ?????????????????????????????????????????????????? | | ?????????????????????????????????????????????????? | | ?????????????????????????????????????????????????? | | | | | | | | | | | | | | | | | | | | | | | | | | | | | | | | | | | | | | | | | +----------------------------------------------------+ Best States ------------- Heat Dissipation 25 Energy Generation 10 Energy Capacity 250 Matter Stores 500 Matter Capacity 500 Sight Range 16 Terrain Scan Density 10 Evasion (%) 50 Item Schematics ----------------- None Robot Schematics ------------------ None Fabricated ------------ Nothing Repaired ---------- Nothing Studied --------- None Alien Tech Used ----------------- None Achievements -------------- None Challenges ------------ None Game ------ Seed GreaterSuspensionNanosword Manual? 0 Play Time 00:06:23 Cumulative 208.6 hours Start 2026.09.05 @ 23:19:20 End 2026.09.05 @ 23:24:21 Sessions 1 Manual Loads 0 Difficulty Rogue Special Mode None Game No. 78 Rogue 78 Adventurer 0 Explorer 0 Win Type - Total 10 Types 7/0/2/1/0/0/0/0/0/0 Lore% 68 Gallery% 65 Achievement% 58 Wizard Run 0 Options --------- Layout 0 ASCII 0 Keyboard 0 Movement Arrows Keybinds 0 Fullscreen 2 Font 18/Terminus Map View 76x50 Zoom Use 0% Tactical HUD 1 Map Filters NONE Filters NONE Steam 1 RUN: 5510908d-9295-4048-8e9e-f3be58fb6643